Organisation,Body Name ,Date,Transaction Number,Amount,Supplier Name,Supplier ID,Expense Area,Expense Code,Expense Type,Extended Description,Service Code,Service Label,Service Division Label,Service Division Code
http://statistics.data.gov.uk/id/local-authority/16UF,Eden District Council,09/06/2017,156401,500,BUCKET  & SPADE MARKETING,BUC010,Commercial Services Manager,2084,Promotional activity,ADVERT THINGS TO DO NORTH LAKES,MARKET,Markets,02382,Mrkts - Penrith Promotional Space
http://statistics.data.gov.uk/id/local-authority/16UF,Eden District Council,09/06/2017,158003,4100,NEW VISION GROUP LTD,NEW013,Commercial Services Manager,2078,Subscriptions & levies,DC NET RENEWAL WEBSERVICES 17/18,TOUPRO,Tourism Promotion,02373,Destination Management System
http://statistics.data.gov.uk/id/local-authority/16UF,Eden District Council,09/06/2017,157899,1857.5,CAPITA PROPERTY & INFRASTRUCTURE LTD,CAP002,Planning Services,2045,Professional fees,EDEN ARBORICULTURAL CONSULTANCY,CONSER,Environmental Enhancement & Conservation,03012,Arboricutural Advice
http://statistics.data.gov.uk/id/local-authority/16UF,Eden District Council,09/06/2017,158012,2989,AUTOMATIC ACCESS LTD,AUT003,Environmental Services,5505,Capital grants,FINAL PAYMENT 36 THE REGENT PENRITH,MEREGR,1996 Mandatory Renovation Grants,06035,Disabled Facility Grants
http://statistics.data.gov.uk/id/local-authority/16UF,Eden District Council,09/06/2017,158069,2000,NEOPOST LIMITED,NEO001,Corporate Services Manager,2054,Postages,FRANKING REFILL,CENTRA,Central Expenses,00205,Postages Town Hall
http://statistics.data.gov.uk/id/local-authority/16UF,Eden District Council,09/06/2017,158060,3812.43,AMEY PLC,TFE001,Technical Services Manager,1001,Grounds Maint Contract additional works,GM105,CEMETE,Cemeteries,02226,Cemeteries
http://statistics.data.gov.uk/id/local-authority/16UF,Eden District Council,09/06/2017,158058,1843.37,AMEY PLC,TFE001,Technical Services Manager,1079,ADHOC WORKS FOR BURIALS,GM108,CEMETE,Cemeteries,02227,Penrith Cemetery
http://statistics.data.gov.uk/id/local-authority/16UF,Eden District Council,09/06/2017,157931,624,ELECTRICITY NORTH WEST LTD,ELE005,Technical Services Manager,3303,FL External Contractors,LAMP DISC IVY BANK DUFTON,FOOLIG,Footway Lighting,02258,Footway lighting
http://statistics.data.gov.uk/id/local-authority/16UF,Eden District Council,09/06/2017,157930,624,ELECTRICITY NORTH WEST LTD,ELE005,Technical Services Manager,3303,FL External Contractors,LAMP DISC QUARRY BANK DUFTON,FOOLIG,Footway Lighting,02258,Footway lighting
http://statistics.data.gov.uk/id/local-authority/16UF,Eden District Council,09/06/2017,157924,614,ELECTRICITY NORTH WEST LTD,ELE005,Technical Services Manager,3303,FL External Contractors,LAMP DISC SWINBURN FARM SKELTON,FOOLIG,Footway Lighting,02258,Footway lighting
http://statistics.data.gov.uk/id/local-authority/16UF,Eden District Council,09/06/2017,157927,1009,ELECTRICITY NORTH WEST LTD,ELE005,Technical Services Manager,5502,Building works,LAMP RECON SWALLOW COTTAGE STAINTON,FOOLIG,Cap Footway Lighting,06149,Cap Footway Lighting
http://statistics.data.gov.uk/id/local-authority/16UF,Eden District Council,09/06/2017,157929,926,ELECTRICITY NORTH WEST LTD,ELE005,Technical Services Manager,5502,Building works,LAMP TRAN BRIDGE HOUSE THRELKELD,FOOLIG,Cap Footway Lighting,06149,Cap Footway Lighting
http://statistics.data.gov.uk/id/local-authority/16UF,Eden District Council,09/06/2017,157932,926,ELECTRICITY NORTH WEST LTD,ELE005,Technical Services Manager,5502,Building works,LAMP TRAN HOWGATE HOUSE NEWBIGGIN,FOOLIG,Cap Footway Lighting,06149,Cap Footway Lighting
http://statistics.data.gov.uk/id/local-authority/16UF,Eden District Council,09/06/2017,157921,926,ELECTRICITY NORTH WEST LTD,ELE005,Technical Services Manager,5502,Building works,LAMP TRAN PENNINE VIEW GAMBLESBY,FOOLIG,Cap Footway Lighting,06149,Cap Footway Lighting
http://statistics.data.gov.uk/id/local-authority/16UF,Eden District Council,09/06/2017,157920,926,ELECTRICITY NORTH WEST LTD,ELE005,Technical Services Manager,5502,Building works,LAMP TRAN POPLAR HOUSE HUTTON JOHN,FOOLIG,Cap Footway Lighting,06149,Cap Footway Lighting
http://statistics.data.gov.uk/id/local-authority/16UF,Eden District Council,09/06/2017,157919,926,ELECTRICITY NORTH WEST LTD,ELE005,Technical Services Manager,5502,Building works,lamp trans causeway house greystoke,FOOLIG,Cap Footway Lighting,06149,Cap Footway Lighting
http://statistics.data.gov.uk/id/local-authority/16UF,Eden District Council,09/06/2017,157925,926,ELECTRICITY NORTH WEST LTD,ELE005,Technical Services Manager,5502,Building works,LAMP TRANS HAWKSBANK HOUSE NEWBIGGIN,FOOLIG,Cap Footway Lighting,06149,Cap Footway Lighting
http://statistics.data.gov.uk/id/local-authority/16UF,Eden District Council,09/06/2017,157926,926,ELECTRICITY NORTH WEST LTD,ELE005,Technical Services Manager,5502,Building works,LAMP TRANS MRLL FELL VIEW TROUTBECK,FOOLIG,Cap Footway Lighting,06149,Cap Footway Lighting
http://statistics.data.gov.uk/id/local-authority/16UF,Eden District Council,09/06/2017,157928,926,ELECTRICITY NORTH WEST LTD,ELE005,Technical Services Manager,5502,Building works,LAMP TRANS PENRUDDOCK PRIMARY SCHOOL,FOOLIG,Cap Footway Lighting,06149,Cap Footway Lighting
http://statistics.data.gov.uk/id/local-authority/16UF,Eden District Council,09/06/2017,158016,926,ELECTRICITY NORTH WEST LTD,ELE005,Technical Services Manager,5502,Building works,LAMP TRANSFER THWIATE COTTAGE SOCKBRIDGE,FOOLIG,Cap Footway Lighting,06149,Cap Footway Lighting
http://statistics.data.gov.uk/id/local-authority/16UF,Eden District Council,09/06/2017,158008,1878,CUMBRIA COUNTY COUNCIL,CCC002,Technical Services Manager,2045,Professional fees,LOCAL AUTHORITY SEARCHES MARCH 17,LANDCH,Land Charges,01002,Land Charges
http://statistics.data.gov.uk/id/local-authority/16UF,Eden District Council,09/06/2017,157989,533.12,GREENWICH LEISURE LTD,NCL001,Technical Services Manager,1101,Building Maintenance - Leisure,NEW EARTH ROD FITTED ANNUAL SERVICE,LEICEN,Eden Leisure Centre & Appleby Swimming P,02097,Penrith Leisure Centre
http://statistics.data.gov.uk/id/local-authority/16UF,Eden District Council,09/06/2017,158017,1390,INSIDE HOUSING,INS022,Human Resources Manager,0050,Advertising,ONLINE RECRUITMENT,CENTRA,Central Expenses,00208,Staff Recruitment
http://statistics.data.gov.uk/id/local-authority/16UF,Eden District Council,09/06/2017,157912,608.4,AMEY PLC,TFE001,Technical Services Manager,1041,Commercial Refuse collection,penrith cemetery service 1/4/17-30/6/17,CEMETE,Cemeteries,02236,Penrith Cemetery Chapel
http://statistics.data.gov.uk/id/local-authority/16UF,Eden District Council,09/06/2017,158074,2632.96,Redacted Information,MET021,Director of Finance,2079,Grants and contributions,PLFRGRANT EDC 16348,FLOOD,Flood Dec 2015,09318,Flood Dec 2015
http://statistics.data.gov.uk/id/local-authority/16UF,Eden District Council,09/06/2017,157809,828,Redacted Information,SMI038,Director of Finance,2079,Grants and contributions,PLFRGRANT EDC16179,FLOOD,Flood Dec 2015,09318,Flood Dec 2015
http://statistics.data.gov.uk/id/local-authority/16UF,Eden District Council,09/06/2017,157811,1805.85,Redacted Information,CAR081,Director of Finance,2079,Grants and contributions,PLFRGRANT EDC16438,FLOOD,Flood Dec 2015,09318,Flood Dec 2015
http://statistics.data.gov.uk/id/local-authority/16UF,Eden District Council,09/06/2017,157808,5000,Redacted Information,WAR031,Director of Finance,2079,Grants and contributions,PLFRGRANT EDC16443,FLOOD,Flood Dec 2015,09318,Flood Dec 2015
http://statistics.data.gov.uk/id/local-authority/16UF,Eden District Council,09/06/2017,157352,1369.9,WALTON GOODLAND LTD,WAL008,Legal Services Manager,2126,Land Management Contract,RATE FOR SURVEYOR,LANDMA,Land Management,01007,Land Management
http://statistics.data.gov.uk/id/local-authority/16UF,Eden District Council,09/06/2017,157922,1009,ELECTRICITY NORTH WEST LTD,ELE005,Technical Services Manager,5502,Building works,RECON LIGHT OPP UNDERKNOTT THRELKED,FOOLIG,Cap Footway Lighting,06149,Cap Footway Lighting
http://statistics.data.gov.uk/id/local-authority/16UF,Eden District Council,09/06/2017,158075,1145.8,PLAYDALE PLAYGROUNDS LTD,PLA007,Technical Services Manager,1080,GM External Contractors,SPARES/INSTALLATION,PARKOS,Parks and Open Spaces,02143,Play Areas
http://statistics.data.gov.uk/id/local-authority/16UF,Eden District Council,09/06/2017,158001,650,IAN CANNON LTD,CAN004,Technical Services Manager,2009,Bank-Refurbishment,SUPPLY/ERECT FENCING RECYCLING CENTRE,RECYCL,Recycling,03047,Recycling
http://statistics.data.gov.uk/id/local-authority/16UF,Eden District Council,09/06/2017,157914,544.44,AMEY PLC,TFE001,Technical Services Manager,1041,Commercial Refuse collection,town hall service 1/4/17-30/6/17,ADMBLD,Administrative Buildings,00500,Town Hall
http://statistics.data.gov.uk/id/local-authority/16UF,Eden District Council,12/06/2017,158559,568,CIEH,CIE007,Environmental Services,2045,Professional fees,BC MAY PAID JUNE 17,HSGSTD,Housing Standards,02307,Housing standards
http://statistics.data.gov.uk/id/local-authority/16UF,Eden District Council,16/06/2017,158080,4210.91,PRINT IMAGE NETWORK LTD,PRI011,Legal Services Manager,6003,Balance Sheet entry BS,A5 POLL CARDS GENERAL ELECTION,HOLD A/C'S,Holding Accounts,10304,Parliam Election Exp
http://statistics.data.gov.uk/id/local-authority/16UF,Eden District Council,16/06/2017,158279,735,TREVOR ROBERTS ASSOCIATES LTD,TRE003,Planning Services,2045,Professional fees,BLOCK BOOKING  3 PLACES,DEVCOE,Development Control & Enforcement,03010,Development Control & Enforcement
http://statistics.data.gov.uk/id/local-authority/16UF,Eden District Council,16/06/2017,158268,5941.84,CUMBRIA WASTE RECYCLING LTD,CUM022,Technical Services Manager,3604,material price fluctuations,BS-F-33-17/18,RECYCL,Recycling,03047,Recycling
http://statistics.data.gov.uk/id/local-authority/16UF,Eden District Council,16/06/2017,157750,1260,CUMBRIAN LOCAL PUBLICATIONS LTD,EDE056,Legal Services Manager,2247,Communications Contracts,COMMUNICATION IN THE COMMUNITY,COMMSV,Communications Services,01055,Communications
http://statistics.data.gov.uk/id/local-authority/16UF,Eden District Council,16/06/2017,158015,1140,CHRIS WAKEFIELD TREE SVCS,CHR001,Technical Services Manager,1088,Ground Maintenance SOR & Dayworks,CROWNS TO 13 WHITE BEAM TREES,PARKOS,Parks and Open Spaces,02129,Open spaces
http://statistics.data.gov.uk/id/local-authority/16UF,Eden District Council,16/06/2017,158063,4471.85,CUMBRIA WASTE RECYCLING LTD,CUM022,Technical Services Manager,3604,material price fluctuations,F-01-17/18,RECYCL,Recycling,03047,Recycling
http://statistics.data.gov.uk/id/local-authority/16UF,Eden District Council,16/06/2017,158059,66560.59,AMEY PLC,TFE001,Technical Services Manager,3003,Contract refuse collection,M - RC 62,REFCOL,Refuse Collection,03050,Clinical Expenditure
http://statistics.data.gov.uk/id/local-authority/16UF,Eden District Council,16/06/2017,158067,500,CUMBERLAND AND WESTMORLAND HERALD,CUM001,Legal Services Manager,2086,Advertising,NOTICE OF INTENTION,LANDMA,Land Management,01007,Land Management
http://statistics.data.gov.uk/id/local-authority/16UF,Eden District Council,16/06/2017,157740,500,CUMBERLAND AND WESTMORLAND HERALD,CUM001,Legal Services Manager,2086,Advertising,NOTICE OF INTENTION TO DISPOSE,LANDMA,Land Management,01007,Land Management
http://statistics.data.gov.uk/id/local-authority/16UF,Eden District Council,16/06/2017,157541,866.56,RENTOKIL INITIAL PEST CONTROL,REN009,Environmental Services,3400,Pest Control,PESTS MISCELLANEOUS,PESCON,Pest Control,03043,Pest Control
http://statistics.data.gov.uk/id/local-authority/16UF,Eden District Council,16/06/2017,158084,3968.4,Redacted Information,ROB049,Director of Finance,2079,Grants and contributions,PLFRGRANT EDC16184,FLOOD,Flood Dec 2015,09318,Flood Dec 2015
http://statistics.data.gov.uk/id/local-authority/16UF,Eden District Council,16/06/2017,158090,5000,Redacted Information,LAK001,Director of Finance,2079,Grants and contributions,PLFRGRANT EDC16395,FLOOD,Flood Dec 2015,09318,Flood Dec 2015
http://statistics.data.gov.uk/id/local-authority/16UF,Eden District Council,16/06/2017,157373,3360,Redacted Information,WAR029,Director of Finance,2079,Grants and contributions,PLFRGRANT EDC16444,FLOOD,Flood Dec 2015,09318,Flood Dec 2015
http://statistics.data.gov.uk/id/local-authority/16UF,Eden District Council,16/06/2017,158277,1500,NPS NORTH WEST LTD,NPS001,Environmental Services,2045,Professional fees,PROFESSIONAL SERVICES NPS ,OHOUSG,Housing Delivery,02302,Housing enabling
http://statistics.data.gov.uk/id/local-authority/16UF,Eden District Council,16/06/2017,157894,1732.42,Redacted Information,BLA022,Planning Services,2037,Printing and stationary,PROGRAMME OFFICER DUTIES,LOPLPO,Local Plans & Policy,03004,Eden Local Plan
http://statistics.data.gov.uk/id/local-authority/16UF,Eden District Council,16/06/2017,158261,849.99,Redacted Information,BLA022,Planning Services,2037,Printing and stationary,PROGRAMME OFFICER MAY 17,LOPLPO,Local Plans & Policy,03004,Eden Local Plan
http://statistics.data.gov.uk/id/local-authority/16UF,Eden District Council,16/06/2017,158088,1402.49,ROYAL MAIL NW,ROY001,Corporate Services Manager,6003,Balance Sheet entry BS,RESPONSE PLUS SERVICE,HOLD A/C'S,Holding Accounts,10305,Cumbria CC Elections
http://statistics.data.gov.uk/id/local-authority/16UF,Eden District Council,16/06/2017,157983,17609.55,METCALFE PLANT & TOOL HIRE LTD,MET002,Technical Services Manager,2305,Flood Damage,ROAD REINSTATEMENT WORK SO FAR JENKINS F,PARKOS,Parks and Open Spaces,02402,Jenkins Field
http://statistics.data.gov.uk/id/local-authority/16UF,Eden District Council,16/06/2017,158250,1332.6,CUMBRIAN NEWSPAPERS LTD,CUM024,Human Resources Manager,0050,Advertising,SITUATIONS VACANT,CENTRA,Central Expenses,00208,Staff Recruitment
http://statistics.data.gov.uk/id/local-authority/16UF,Eden District Council,16/06/2017,158271,1283.27,HEATONS OFFICE SOLUTIONS LTD,LAK004,Planning Services,2005,Furniture � office,STATIONERY/FURNITURE/PAPER,PLASER,Planning Services,00304,Planning Services
http://statistics.data.gov.uk/id/local-authority/16UF,Eden District Council,16/06/2017,158220,9981.24,AMEY PLC,TFE001,Planning Services,2196,Direct Action - Planning Enforcement,WEARISOME APPLEBY,DEVCOE,Development Control & Enforcement,03010,Development Control & Enforcement
http://statistics.data.gov.uk/id/local-authority/16UF,Eden District Council,19/06/2017,158372,511.39,Redacted Information,HOR012,Director of Finance,2079,Grants and contributions,PLFRGRANT EDC16009,FLOOD,Flood Dec 2015,09318,Flood Dec 2015
http://statistics.data.gov.uk/id/local-authority/16UF,Eden District Council,20/06/2017,158639,1478,BUSY BEES CHILDCARE VOUCHERS,BUS004,Commercial Services Manager,0005,Child Care Voucher Scheme,CHILDCARE VOUCHERS 20/06/17 DDR,COMSER,Commercial Services,00310,Commercial Services
http://statistics.data.gov.uk/id/local-authority/16UF,Eden District Council,23/06/2017,158408,1947.96,PPM LTD,PPM001,Environmental Services,5505,Capital grants,160054/INTERIM PAY/,MEREGR,1996 Mandatory Renovation Grants,06035,Disabled Facility Grants
http://statistics.data.gov.uk/id/local-authority/16UF,Eden District Council,23/06/2017,158331,1000,CUMBRIA WILDLIFE TRUST,CUM077,Planning Services,2079,Grants and contributions,2016/17 SUBSCRIPTION,CONSER,Environmental Enhancement & Conservation,03076,Cumbria Wildlife trust cont NI197
http://statistics.data.gov.uk/id/local-authority/16UF,Eden District Council,23/06/2017,157195,3600,THIRTY NINE ESSEX STREET,THI004,Legal Services Manager,2045,Professional fees,ADVICE IN WRITING CASE 213250,LEGSER,Legal Services,00201,Legal & Committee
http://statistics.data.gov.uk/id/local-authority/16UF,Eden District Council,23/06/2017,158378,7600.72,CUMBRIA WASTE RECYCLING LTD,CUM022,Technical Services Manager,3601,Recycling  - Bring Sites,BS-57,RECYCL,Recycling,03047,Recycling
http://statistics.data.gov.uk/id/local-authority/16UF,Eden District Council,23/06/2017,158410,4791.84,CUMBRIA WASTE RECYCLING LTD,CUM022,Technical Services Manager,3604,material price fluctuations,BS-F-34-17/18,RECYCL,Recycling,03047,Recycling
http://statistics.data.gov.uk/id/local-authority/16UF,Eden District Council,23/06/2017,158368,1240,CUMBRIA COUNTY COUNCIL,CCC002,Technical Services Manager,2045,Professional fees,COMMONS SEARCHES JAN/FEB/MAR 17,LANDCH,Land Charges,01002,Land Charges
http://statistics.data.gov.uk/id/local-authority/16UF,Eden District Council,23/06/2017,158367,1360,CUMBRIA COUNTY COUNCIL,CCC002,Technical Services Manager,2045,Professional fees,COMMONS SEARCHES OCT/NOV/DEC 16,LANDCH,Land Charges,01002,Land Charges
http://statistics.data.gov.uk/id/local-authority/16UF,Eden District Council,23/06/2017,158369,-640,CUMBRIA COUNTY COUNCIL,CCC002,Technical Services Manager,2045,Professional fees,CREDIT INV FEB/MAR INV 0291749,LANDCH,Land Charges,01002,Land Charges
http://statistics.data.gov.uk/id/local-authority/16UF,Eden District Council,23/06/2017,158371,-1340,CUMBRIA COUNTY COUNCIL,CCC002,Technical Services Manager,2045,Professional fees,CREDIT OCT/NOV/DEC 16 INV 0291164,LANDCH,Land Charges,01002,Land Charges
http://statistics.data.gov.uk/id/local-authority/16UF,Eden District Council,23/06/2017,158386,534,HM COURTS SERVICE,HMC007,Revenue/Benefits Manager,2046,Legal and court costs,CTNNDRLOS280617COURT,LOCTAX,Collection of Local Taxation,01006,Council Tax
http://statistics.data.gov.uk/id/local-authority/16UF,Eden District Council,23/06/2017,158326,1125,SHAP COMMUNITY CIO,SHA030,Commercial Services Manager,6003,Balance Sheet entry BS,ECF144 FINAL PAY,COMMFND,Community Fund,10400,Community Fund
http://statistics.data.gov.uk/id/local-authority/16UF,Eden District Council,23/06/2017,158383,3714,WSP UK LTD,WSP001,Environmental Services,2045,Professional fees,EDEN HEAT NETWORK FEASABILITY STUDY,OHOUSG,Housing Delivery,03090,Heat Network Funding
http://statistics.data.gov.uk/id/local-authority/16UF,Eden District Council,23/06/2017,158392,3436.02,CUMBRIA WASTE RECYCLING LTD,CUM022,Technical Services Manager,3604,material price fluctuations,F-02-17/18,RECYCL,Recycling,03047,Recycling
http://statistics.data.gov.uk/id/local-authority/16UF,Eden District Council,23/06/2017,158389,1390,INSIDE HOUSING,INS022,Human Resources Manager,0050,Advertising,FAILED BACS INV IH261477,CENTRA,Central Expenses,00208,Staff Recruitment
http://statistics.data.gov.uk/id/local-authority/16UF,Eden District Council,23/06/2017,156671,640,CUMBRIA COUNTY COUNCIL,CCC002,Technical Services Manager,2045,Professional fees,FRB/MAR 2017,LANDCH,Land Charges,01002,Land Charges
http://statistics.data.gov.uk/id/local-authority/16UF,Eden District Council,23/06/2017,158379,19838.72,CUMBRIA WASTE RECYCLING LTD,CUM022,Technical Services Manager,3600,Recycling - Bag & Box,GB-02-17/18,RECYCL,Recycling,03047,Recycling
http://statistics.data.gov.uk/id/local-authority/16UF,Eden District Council,23/06/2017,158349,3023.11,AMEY PLC,TFE001,Technical Services Manager,1079,ADHOC WORKS FOR BURIALS,GM109,CEMETE,Cemeteries,02229,Alston Moor Cemetery
http://statistics.data.gov.uk/id/local-authority/16UF,Eden District Council,23/06/2017,158405,2834.07,AMEY PLC,TFE001,Technical Services Manager,1080,GM External Contractors,GM110,CEMETE,Cemeteries,02236,Penrith Cemetery Chapel
http://statistics.data.gov.uk/id/local-authority/16UF,Eden District Council,23/06/2017,158363,2940,CUMBRIA WASTE RECYCLING LTD,CUM022,Technical Services Manager,2014,Garden Waste Skips,GREEN SKIP COLLECTION  MAY 17,RECYCL,Recycling,03047,Recycling
http://statistics.data.gov.uk/id/local-authority/16UF,Eden District Council,23/06/2017,157408,7175.84,PURCELL MILLER TRITTON LLP,PUR010,Commercial Services Manager,2045,Professional fees,HIGH MILL ALSTON,EDEVPR,Economic Development and Promotion,02390,High Mill Alston
http://statistics.data.gov.uk/id/local-authority/16UF,Eden District Council,23/06/2017,158258,1009,ELECTRICITY NORTH WEST LTD,ELE005,Technical Services Manager,5502,Building works,LAMP RECON CHURCH VIEW GREYSTOKE,FOOLIG,Cap Footway Lighting,06149,Cap Footway Lighting
http://statistics.data.gov.uk/id/local-authority/16UF,Eden District Council,23/06/2017,158257,1009,ELECTRICITY NORTH WEST LTD,ELE005,Technical Services Manager,5502,Building works,LAMP RECON ICOLD RD GREYSTOKE,FOOLIG,Cap Footway Lighting,06149,Cap Footway Lighting
http://statistics.data.gov.uk/id/local-authority/16UF,Eden District Council,23/06/2017,158256,926,ELECTRICITY NORTH WEST LTD,ELE005,Technical Services Manager,5502,Building works,LAMP TRANS MAPLE COTT GREYSTOKE,FOOLIG,Cap Footway Lighting,06149,Cap Footway Lighting
http://statistics.data.gov.uk/id/local-authority/16UF,Eden District Council,23/06/2017,158414,17434.39,AMEY PLC,TFE001,Environmental Services,3100,Street Cleaning Contract,M-SC63,APFAIR,Appleby Fair,03036,Appleby Fair
http://statistics.data.gov.uk/id/local-authority/16UF,Eden District Council,23/06/2017,157744,510,DRAGONFLY DOCUMENTS,DRA003,Planning Services,2037,Printing and stationary,NOTE TAKING/TYPING EDEN LOCAL PLAN,LOPLPO,Local Plans & Policy,03004,Eden Local Plan
http://statistics.data.gov.uk/id/local-authority/16UF,Eden District Council,23/06/2017,158376,55000,PENRITH B I D,PEN063,Revenue/Benefits Manager,2080,Contribution by EDC,PENRITH BID JUNE MONIES,BID,Penrith BID Cash,08108,Penrith BID Cash
http://statistics.data.gov.uk/id/local-authority/16UF,Eden District Council,23/06/2017,158501,2100,Redacted Information,MET021,Director of Finance,2079,Grants and contributions,PLFRG EDC 16348,FLOOD,Flood Dec 2015,09318,Flood Dec 2015
http://statistics.data.gov.uk/id/local-authority/16UF,Eden District Council,23/06/2017,158362,1262.27,ROYAL MAIL NW,ROY001,Revenue/Benefits Manager,2054,Postages,POST CHARGES 17.05.17-06.06.17,REVBEN,Revenue & Benefits,00106,Revenues
http://statistics.data.gov.uk/id/local-authority/16UF,Eden District Council,23/06/2017,156427,1340,CUMBRIA COUNTY COUNCIL,CCC002,Technical Services Manager,2045,Professional fees,QUARTERLY COMMON SRATCHES OCT/NOV/DEC16,LANDCH,Land Charges,01002,Land Charges
http://statistics.data.gov.uk/id/local-authority/16UF,Eden District Council,23/06/2017,158260,1500,GREENWICH LEISURE LTD,NCL001,Technical Services Manager,2047,Other charges for services,RECHARGE LINE MARKINGS FESTIVAL 2017,ARTLEI,Arts and Leisure,02116,Sports leisure develop fund
http://statistics.data.gov.uk/id/local-authority/16UF,Eden District Council,23/06/2017,157994,1966.67,GREENWICH LEISURE LTD,NCL001,Technical Services Manager,2000,Equipment � purchase,RECHARGE PURCHASE OF WATT,LEICEN,Eden Leisure Centre & Appleby Swimming P,02097,Penrith Leisure Centre
http://statistics.data.gov.uk/id/local-authority/16UF,Eden District Council,23/06/2017,157995,3200,GREENWICH LEISURE LTD,NCL001,Technical Services Manager,2000,Equipment � purchase,RECHARGE UPGRADE CCTV,LEICEN,Eden Leisure Centre & Appleby Swimming P,02097,Penrith Leisure Centre
http://statistics.data.gov.uk/id/local-authority/16UF,Eden District Council,23/06/2017,158007,10914,IAN CANNON LTD,CAN004,Financial Services Manager,6000,Balance brought forward BS,RIVER BANK/DRAINAGE/PATHS & PAVING,CENTRA,Central Expenses,10263,Payments in Adv - Gf
http://statistics.data.gov.uk/id/local-authority/16UF,Eden District Council,23/06/2017,158393,500,ASKHAM SWIMMING POOL,ASK009,Technical Services Manager,2079,Grants and contributions,RURAL POOL GRANT 1ST PAY 2017,ARTLEI,Arts and Leisure,02107,Rural pool grants
http://statistics.data.gov.uk/id/local-authority/16UF,Eden District Council,23/06/2017,158356,650,QUATTRO CONTRACTING (PEN) LTD,QUA004,Technical Services Manager,2237,Greening of Penrith Grant,SANDGATE BUS STATION WORKS,PARKOS,Parks and Open Spaces,02124,Parks & open spaces
http://statistics.data.gov.uk/id/local-authority/16UF,Eden District Council,23/06/2017,158366,2384,CUMBRIA COUNTY COUNCIL,CCC002,Technical Services Manager,2045,Professional fees,SEARCHES PPART 1/2 EXPIDITED,LANDCH,Land Charges,01002,Land Charges
http://statistics.data.gov.uk/id/local-authority/16UF,Eden District Council,23/06/2017,158354,3750,UPPER EDEN COMMUNITY INTEREST COMPANY,UPP006,Communities Director,2081,Promotions,SERVICE LEVEL AGREEMENT 2017/18,EDEVPR,Economic Development and Promotion,02003,Economic Promotion - BRRS
http://statistics.data.gov.uk/id/local-authority/16UF,Eden District Council,23/06/2017,158343,6364.37,E.ON UK PLC,EON001,Technical Services Manager,1022,Electricity,STREET LIGHTING,FOOLIG,Footway Lighting,02258,Footway lighting
http://statistics.data.gov.uk/id/local-authority/16UF,Eden District Council,23/06/2017,158403,1600,VOLUNTARY ACTION CUMBRIA,VOL001,Commercial Services Manager,2042,Community engagement development,SUPPORT OF EDEN COMMUNITY BUILDINGS EVENT,COMDEV,Community Development & Engagement,01056,Consultation
http://statistics.data.gov.uk/id/local-authority/16UF,Eden District Council,23/06/2017,158357,5700,BORDERLOOS,BOR003,Environmental Services,1008,Toilet Provision,TOILET HIRE APPLEBY FAIR 2017,APFAIR,Appleby Fair,03036,Appleby Fair
http://statistics.data.gov.uk/id/local-authority/16UF,Eden District Council,23/06/2017,157268,4928,ADT FIRE AND SECURITY,ADT001,Human Resources Manager,2000,Equipment � purchase,UPGRADE ACCESS CONTROL SYSTEM,CENTRA,Central Expenses,00221,Security System Maintenance
http://statistics.data.gov.uk/id/local-authority/16UF,Eden District Council,23/06/2017,158394,1000,APPLEBY BOWLING CLUB,APP018,Environmental Services,2047,Other charges for services,USE OF CLUB FOR APPLEBY FAIR 2017,APFAIR,Appleby Fair,03036,Appleby Fair
http://statistics.data.gov.uk/id/local-authority/16UF,Eden District Council,23/06/2017,158413,43637.47,PHOENIX SOFTWARE LTD,PHO001,Information Technology Manager,2066,Software � purchase,VARIOUS SOFTWARE LICENCES,INFTEC,Information Technology,00102,Information Technology
http://statistics.data.gov.uk/id/local-authority/16UF,Eden District Council,30/06/2017,158401,5519.67,PRINT IMAGE NETWORK LTD,PRI011,Legal Services Manager,6003,Balance Sheet entry BS,2017 COUNTY COUNCIL FLEXI VOTE PACKS,HOLD A/C'S,Holding Accounts,10304,Parliam Election Exp
http://statistics.data.gov.uk/id/local-authority/16UF,Eden District Council,30/06/2017,158329,6234.58,PRINT IMAGE NETWORK LTD,PRI011,Legal Services Manager,6003,Balance Sheet entry BS,2017 PARLIAMENTARY BALLOT BOOKS,HOLD A/C'S,Holding Accounts,10304,Parliam Election Exp
http://statistics.data.gov.uk/id/local-authority/16UF,Eden District Council,30/06/2017,158346,1384.4,ROYAL MAIL NW,ROY001,Legal Services Manager,6003,Balance Sheet entry BS,BUSINESS MAIL ADVANCED,HOLD A/C'S,Holding Accounts,10304,Parliam Election Exp
http://statistics.data.gov.uk/id/local-authority/16UF,Eden District Council,30/06/2017,158489,1039.88,NEOPOST LIMITED,NEO002,Corporate Services Manager,2054,Postages,CARTRIDGE/LABELS,CENTRA,Central Expenses,00204,Postages Mansion House
http://statistics.data.gov.uk/id/local-authority/16UF,Eden District Council,30/06/2017,158429,22000,APPLEBY HERITAGE CENTRE,APP008,Commercial Services Manager,2079,Grants and contributions,EDC APPRENTICE GRANT 2ND INSTALMENT,EDEVPR,Economic Development and Promotion,02005,Apprenticeship Scheme
http://statistics.data.gov.uk/id/local-authority/16UF,Eden District Council,30/06/2017,158355,788,PRINT IMAGE NETWORK LTD,PRI011,Legal Services Manager,6003,Balance Sheet entry BS,EDEN LARGE FORMAT BALLOT PAPERS,HOLD A/C'S,Holding Accounts,10304,Parliam Election Exp
http://statistics.data.gov.uk/id/local-authority/16UF,Eden District Council,30/06/2017,158533,8304,TERRY GROUP LTD,TER003,Environmental Services,5505,Capital grants,FINAL PAYMENT ,MEREGR,1996 Mandatory Renovation Grants,06035,Disabled Facility Grants
http://statistics.data.gov.uk/id/local-authority/16UF,Eden District Council,30/06/2017,158496,2939.68,AMEY PLC,TFE001,Technical Services Manager,3300,FL  Contract,FL-03/2017,FOOLIG,Footway Lighting,02258,Footway lighting
http://statistics.data.gov.uk/id/local-authority/16UF,Eden District Council,30/06/2017,158641,1745,PRINT IMAGE NETWORK LTD,PRI011,Legal Services Manager,6003,Balance Sheet entry BS,FLEXI WORLDWIDE POSTAL VOTE PACK,HOLD A/C'S,Holding Accounts,10304,Parliam Election Exp
http://statistics.data.gov.uk/id/local-authority/16UF,Eden District Council,30/06/2017,158651,6000,CUMBRIA CHAMBER OF COMMERCE AND INDUSTRY,CUM003,Communities Director,2081,Promotions,INITIAL PAYMENT GRANT FUNDING 17/18,EDEVPR,Economic Development and Promotion,02003,Economic Promotion - BRRS
http://statistics.data.gov.uk/id/local-authority/16UF,Eden District Council,30/06/2017,158239,530.03,AMEY PLC,TFE001,Technical Services Manager,1016,Planned Maintenance,INSTALL NEW FLOODLIGHT,ADMBLD,Administrative Buildings,00500,Town Hall
http://statistics.data.gov.uk/id/local-authority/16UF,Eden District Council,30/06/2017,158404,10486,GRANT THORNTON UK LLP,THO026,Financial Services Manager,2043,Audit fee,INSTALMENT 4 OF 4 EXTERNAL AUDIT,CORPOR,Corporate Costs,01065,Audit Fee
http://statistics.data.gov.uk/id/local-authority/16UF,Eden District Council,30/06/2017,158426,15815,MCDOUGALL BUILDING CONTRACTORS,MCD002,Environmental Services,5505,Capital grants,INTERIM PAYMENT  NENTHEAD,MEREGR,1996 Mandatory Renovation Grants,06035,Disabled Facility Grants
http://statistics.data.gov.uk/id/local-authority/16UF,Eden District Council,30/06/2017,158086,4064.4,ROYAL MAIL NW,ROY001,Corporate Services Manager,6003,Balance Sheet entry BS,INTERNATIONAL STANDARD,HOLD A/C'S,Holding Accounts,10304,Parliam Election Exp
http://statistics.data.gov.uk/id/local-authority/16UF,Eden District Council,30/06/2017,158495,614,ELECTRICITY NORTH WEST LTD,ELE005,Technical Services Manager,5502,Building works,LAMP DISC EDEN BUSINESS PARK PENRITH,EDEVPR,Gilwilly Extension Eden Business park,06002,Gilwilly Extension Eden Business park
http://statistics.data.gov.uk/id/local-authority/16UF,Eden District Council,30/06/2017,158492,614,ELECTRICITY NORTH WEST LTD,ELE005,Technical Services Manager,3303,FL External Contractors,LAMP DISC ELM TREE MAIN ST SHAP,FOOLIG,Footway Lighting,02258,Footway lighting
http://statistics.data.gov.uk/id/local-authority/16UF,Eden District Council,30/06/2017,158493,614,ELECTRICITY NORTH WEST LTD,ELE005,Technical Services Manager,3303,FL External Contractors,LAMP DISC RECTORY FARM K THORE,FOOLIG,Footway Lighting,02258,Footway lighting
http://statistics.data.gov.uk/id/local-authority/16UF,Eden District Council,30/06/2017,158494,614,ELECTRICITY NORTH WEST LTD,ELE005,Technical Services Manager,3303,FL External Contractors,LAMP DISC ROODS PLACE KIRKOSWALD,FOOLIG,Footway Lighting,02258,Footway lighting
http://statistics.data.gov.uk/id/local-authority/16UF,Eden District Council,30/06/2017,158491,926,ELECTRICITY NORTH WEST LTD,ELE005,Technical Services Manager,5502,Building works,LAMP TRANS CASTLE MOUNT ARMATHWAITE,FOOLIG,Cap Footway Lighting,06149,Cap Footway Lighting
http://statistics.data.gov.uk/id/local-authority/16UF,Eden District Council,30/06/2017,158490,926,ELECTRICITY NORTH WEST LTD,ELE005,Technical Services Manager,5502,Building works,lamp trans millbank low hesket,FOOLIG,Cap Footway Lighting,06149,Cap Footway Lighting
http://statistics.data.gov.uk/id/local-authority/16UF,Eden District Council,30/06/2017,158431,935,CUMBRIA MARQUEES LTD,CUM120,Technical Services Manager,2047,Other charges for services,MARQUEE HIRE,ARTLEI,Arts and Leisure,02116,Sports leisure develop fund
http://statistics.data.gov.uk/id/local-authority/16UF,Eden District Council,30/06/2017,158502,32307.85,AMEY PLC,TFE001,Technical Services Manager,1089,GM INSPECTIONS & MAINTENANCE,M-GM63,CLCHYD,Closed Church Yards,02246,War Memorials
http://statistics.data.gov.uk/id/local-authority/16UF,Eden District Council,30/06/2017,158416,66560.59,AMEY PLC,TFE001,Technical Services Manager,3003,Contract refuse collection,M-RC63,REFCOL,Refuse Collection,03050,Clinical Expenditure
http://statistics.data.gov.uk/id/local-authority/16UF,Eden District Council,30/06/2017,158635,500,AMEY PLC,TFE001,Technical Services Manager,1000,Building Maintenance,PCS PATTERDALE ROOF,PUBCON,Public Conveniences,02271,Patterdale Public Convenience
http://statistics.data.gov.uk/id/local-authority/16UF,Eden District Council,30/06/2017,158341,4520,Redacted Information,LON018,Director of Finance,2079,Grants and contributions,PLFRG EDC16312 2ND PAY,FLOOD,Flood Dec 2015,09318,Flood Dec 2015
http://statistics.data.gov.uk/id/local-authority/16UF,Eden District Council,30/06/2017,158374,4564.8,Redacted Information,BON010,Director of Finance,2079,Grants and contributions,PLFRGANT EDC16163,FLOOD,Flood Dec 2015,09318,Flood Dec 2015
http://statistics.data.gov.uk/id/local-authority/16UF,Eden District Council,30/06/2017,158507,1640,Redacted Information,WAR029,Director of Finance,2079,Grants and contributions,PLFRGRANT DC16444,FLOOD,Flood Dec 2015,09318,Flood Dec 2015
http://statistics.data.gov.uk/id/local-authority/16UF,Eden District Council,30/06/2017,158388,3706.8,Redacted Information,COC001,Director of Finance,2079,Grants and contributions,PLFRGRANT EDC16185,FLOOD,Flood Dec 2015,09318,Flood Dec 2015
http://statistics.data.gov.uk/id/local-authority/16UF,Eden District Council,30/06/2017,158267,4980,Redacted Information,CAM010,Director of Finance,2079,Grants and contributions,PLFRGRANT EDC16195,FLOOD,Flood Dec 2015,09318,Flood Dec 2015
http://statistics.data.gov.uk/id/local-authority/16UF,Eden District Council,30/06/2017,158529,5000,Redacted Information,GLA010,Director of Finance,2079,Grants and contributions,PLFRGRANT EDC16310,FLOOD,Flood Dec 2015,09318,Flood Dec 2015
http://statistics.data.gov.uk/id/local-authority/16UF,Eden District Council,30/06/2017,158550,3750,Redacted Information,BRO056,Director of Finance,2079,Grants and contributions,PLFRGRANT EDC16331,FLOOD,Flood Dec 2015,09318,Flood Dec 2015
http://statistics.data.gov.uk/id/local-authority/16UF,Eden District Council,30/06/2017,158549,3750,Redacted Information,BRO055,Director of Finance,2079,Grants and contributions,PLFRGRANT EDC16332,FLOOD,Flood Dec 2015,09318,Flood Dec 2015
http://statistics.data.gov.uk/id/local-authority/16UF,Eden District Council,30/06/2017,158531,5000,Redacted Information,STA041,Director of Finance,2079,Grants and contributions,PLFRGRANT EDC16343,FLOOD,Flood Dec 2015,09318,Flood Dec 2015
http://statistics.data.gov.uk/id/local-authority/16UF,Eden District Council,30/06/2017,158536,2752,Redacted Information,CRE009,Director of Finance,2079,Grants and contributions,PLFRGRANT EDC16392,FLOOD,Flood Dec 2015,09318,Flood Dec 2015
http://statistics.data.gov.uk/id/local-authority/16UF,Eden District Council,30/06/2017,158433,2115,Redacted Information,ROT003,Director of Finance,2079,Grants and contributions,PLFRGRANT EDC16423,FLOOD,Flood Dec 2015,09318,Flood Dec 2015
http://statistics.data.gov.uk/id/local-authority/16UF,Eden District Council,30/06/2017,158537,2319.6,Redacted Information,JUD002,Director of Finance,2079,Grants and contributions,PLFRGRANT EDC16424,FLOOD,Flood Dec 2015,09318,Flood Dec 2015
http://statistics.data.gov.uk/id/local-authority/16UF,Eden District Council,30/06/2017,158530,4726.92,Redacted Information,WIL084,Director of Finance,2079,Grants and contributions,PLFRGRANT EDC16427,FLOOD,Flood Dec 2015,09318,Flood Dec 2015
http://statistics.data.gov.uk/id/local-authority/16UF,Eden District Council,30/06/2017,158375,5000,Redacted Information,STO014,Director of Finance,2079,Grants and contributions,PLFRGRANT EDC16450,FLOOD,Flood Dec 2015,09318,Flood Dec 2015
http://statistics.data.gov.uk/id/local-authority/16UF,Eden District Council,30/06/2017,158373,5000,Redacted Information,BRO054,Director of Finance,2079,Grants and contributions,PLFRGRANT EDC16478,FLOOD,Flood Dec 2015,09318,Flood Dec 2015
http://statistics.data.gov.uk/id/local-authority/16UF,Eden District Council,30/06/2017,158434,15000,Redacted Information,TEA006,Director of Finance,2079,Grants and contributions,PLFRGRANT EDC319/320/321,FLOOD,Flood Dec 2015,09318,Flood Dec 2015
http://statistics.data.gov.uk/id/local-authority/16UF,Eden District Council,30/06/2017,158538,1200,NPS NORTH WEST LTD,NPS001,Environmental Services,2045,Professional fees,PROFESSIONAL SERVICES,OHOUSG,Housing Delivery,02383,Affordable Housing Fund Revenue
http://statistics.data.gov.uk/id/local-authority/16UF,Eden District Council,30/06/2017,158240,586.58,AMEY PLC,TFE001,Technical Services Manager,1000,Building Maintenance,REPLACE DOOR,PUBCON,Public Conveniences,02291,Shap Public Convenience
http://statistics.data.gov.uk/id/local-authority/16UF,Eden District Council,30/06/2017,158340,2095.74,ROYAL MAIL NW,ROY001,Corporate Services Manager,6003,Balance Sheet entry BS,RESPONSE PLUS SERIVICE,HOLD A/C'S,Holding Accounts,10304,Parliam Election Exp
http://statistics.data.gov.uk/id/local-authority/16UF,Eden District Council,30/06/2017,158014,810,COUNTRYSIDE CONSULTANTS,COU025,Technical Services Manager,2092,Miscellaneous,RESTORATION OF RAILINGS CHURCHYARD APPLB,EMWKPL,Emergency Planning and Works,01089,Emergency Works
http://statistics.data.gov.uk/id/local-authority/16UF,Eden District Council,30/06/2017,158390,1406,LAMBERT SMITH HAMPTON,LAM009,Planning Services,2045,Professional fees,RETAIN VISIBILITY VALUATION AUDIT,DEVCOE,Development Control & Enforcement,03010,Development Control & Enforcement
http://statistics.data.gov.uk/id/local-authority/16UF,Eden District Council,30/06/2017,158424,500,HUNSONBY SWIMMING POOL,HUN003,Technical Services Manager,2079,Grants and contributions,RURAL POOL GRANTS SUMMER 17,ARTLEI,Arts and Leisure,02107,Rural pool grants
http://statistics.data.gov.uk/id/local-authority/16UF,Eden District Council,30/06/2017,158425,500,SHAP SWIMMING POOL,SHA011,Technical Services Manager,2079,Grants and contributions,RURAL POOL GRANTS SUMMER 17,ARTLEI,Arts and Leisure,02107,Rural pool grants
http://statistics.data.gov.uk/id/local-authority/16UF,Eden District Council,30/06/2017,158636,750,AMEY PLC,TFE001,Technical Services Manager,1000,Building Maintenance,STONESHOT PCS DOOR,PUBCON,Public Conveniences,02266,Public Conveniences
http://statistics.data.gov.uk/id/local-authority/16UF,Eden District Council,30/06/2017,158417,950,REDACTIVE PUBLISHING LIMITED,RED006,Human Resources Manager,0050,Advertising,THE PLANNER ONLINE,CENTRA,Central Expenses,00208,Staff Recruitment
http://statistics.data.gov.uk/id/local-authority/16UF,Eden District Council,30/06/2017,158348,650,KENWORTHY'S CHAMBERS,KEN021,Legal Services Manager,2045,Professional fees,Redacted Information,LEGSER,Legal Services,00201,Legal & Committee
http://statistics.data.gov.uk/id/local-authority/16UF,Eden District Council,42891,167250,135240,EHA,EHA001,Environmental Services,6003,Balance Sheet entry BS,EHA Loan Lonsdale Court,OHOUSG,Housing Delivery,10450,EHA Loan Lonsdale Court
http://statistics.data.gov.uk/id/local-authority/16UF,Eden District Council,42902,167705,22000,Cartmell Shepherd,csh001,Commercial Services Manager,5500,Purchase of assets,Corney Square 4/4A Purchase,ADMBLD,Administrative Buildings,06161,Corney Square 4/4A Purchase
http://statistics.data.gov.uk/id/local-authority/16UF,Eden District Council,42912,167739,198000,Cartmell Shepherd,csh001,Commercial Services Manager,5500,Purchase of assets,Corney Square 4/4A Purchase,ADMBLD,Administrative Buildings,06161,Corney Square 4/4A Purchase
http://statistics.data.gov.uk/id/local-authority/16UF,Eden District Council,42913,167743,2111.02,Barclays Bank,BBK001,Financial Services Manager,2088,Bank charges,Commission Charges Mar - Jun 17,CORPOR,Corporate Costs,01064,Bank Charges
http://statistics.data.gov.uk/id/local-authority/16UF,Eden District Council,07/07/2017,158722,2140,DUE NORTH LTD,DUE001,Financial Services Manager,2045,Professional fees,SALES SUB PRO CONTRACT ANNUAL FEE,CORPOR,Corporate Costs,01131,Collaborative Procurement
